fUSD/lending_fUSD_20240917
["ID","MTS","AMOUNT","RATE_DAILY","PERIOD"]
[338368341,1726567301005,2295.53,0.00025,60]
[338368343,1726567301057,3477.43,0.00025,60]
[338368344,1726567301206,2975.65,0.00012441,2]
[338368345,1726567301282,3477.43,0.00025,60]
[338368346,1726567301346,2295.53,0.00025,60]
[338368348,1726567301568,3477.43,0.00025,60]
[338368349,1726567301622,2295.53,0.00025,60]
[338368350,1726567301653,2975.65,0.00012444,2]
[338368351,1726567301701,3477.43,0.00025,60]
[338368355,1726567302188,2975.65,0.00012448,2]
[338368356,1726567302237,2295.53,0.00025,60]
[338368357,1726567302289,3477.43,0.00025,60]
[338368358,1726567302354,2295.53,0.00025,60]
[338368359,1726567302404,3477.43,0.00025,60]
[338368360,1726567302457,2295.53,0.00025,60]
[338368361,1726567302508,500.0,0.00025,60]
[338368362,1726567302559,3477.43,0.00025,60]
[338368363,1726567302609,2295.53,0.00025,60]
[338368365,1726567302663,500.0,0.00025,60]
[338368366,1726567302716,3477.43,0.00025,60]
[338368367,1726567302782,2295.53,0.00025,60]
[338368368,1726567302835,500.0,0.00025,60]
[338368369,1726567302887,3477.43,0.00025,60]
[338368370,1726567302939,2295.53,0.00025,60]
[338368371,1726567302989,170.5702752,0.00025,60]
[338368372,1726567303137,3477.52422012,0.00025,60]
[338368373,1726567303192,500.0,0.00025,60]
[338368374,1726567303243,2295.53,0.00025,60]
[338368375,1726567303304,500.0,0.00025,60]
[338368376,1726567303360,2295.53,0.00025,60]
[338368377,1726567303411,2295.53,0.00025,60]
[338368379,1726567303468,500.0,0.00025,60]
[338368380,1726567303523,2295.53,0.00025,60]
[338368381,1726567303577,500.0,0.00025,60]
[338368382,1726567303629,2295.53,0.00025,60]
[338368383,1726567303684,2295.53,0.00025,60]
[338368384,1726567303733,500.0,0.00025,60]
[338368385,1726567303882,308.40858899,0.00025,60]
[338368386,1726567303957,2295.53,0.00025,60]
[338368388,1726567304011,7472.58,0.00025,60]
[338368389,1726567304072,2295.53,0.00025,60]
[338368390,1726567304137,7472.58,0.00025,60]
[338368391,1726567304192,3106.78,0.00025,60]
[338368392,1726567304243,2295.53,0.00025,60]
[338368393,1726567304293,500.0,0.00025,60]
[338368394,1726567304343,7472.58,0.00025,60]
[338368395,1726567304395,500.0,0.00025,60]
[338368396,1726567304446,2295.53,0.00025,60]
[338368397,1726567304496,3106.78,0.00025,60]
[338368398,1726567304550,7472.58,0.00025,60]
[338368399,1726567304599,500.0,0.00025,60]
[338368400,1726567304652,500.0,0.00025,60]
[338368401,1726567304818,2295.53,0.00025,60]
[338368402,1726567304866,3106.78,0.00025,60]
[338368403,1726567305019,500.0,0.00025,60]
[338368404,1726567305072,500.0,0.00025,60]
[338368405,1726567305122,7472.58,0.00025,60]
[338368406,1726567305171,2295.53,0.00025,60]
[338368407,1726567305239,3106.78,0.00025,60]
[338368408,1726567305355,250.47255261,0.00025,60]
[338368409,1726567305516,500.0,0.00025,60]
[338368411,1726567305634,7472.58,0.00025,60]
[338368413,1726567305685,2295.53,0.00025,60]
[338368414,1726567305736,3106.78,0.00025,60]
[338368415,1726567305889,500.0,0.00025,60]
[338368416,1726567305992,3106.78,0.00025,60]
[338368417,1726567306230,500.0,0.00025,60]
[338368418,1726567306283,2295.65106688,0.00025,60]
[338368419,1726567306334,7472.58,0.00025,60]
[338368420,1726567306386,500.0,0.00025,60]
[338368421,1726567306438,3106.78,0.00025,60]
[338368422,1726567306489,7472.58,0.00025,60]
[338368423,1726567306539,3106.78,0.00025,60]
[338368424,1726567306597,500.0,0.00025,60]
[338368425,1726567306648,7472.58,0.00025,60]
[338368427,1726567306938,3106.85746455,0.00025,60]
[338368428,1726567306991,500.0,0.00025,60]
[338368429,1726567307040,7472.58,0.00025,60]
[338368430,1726567307090,500.0,0.00025,60]
[338368431,1726567307170,7472.58,0.00025,60]
[338368432,1726567307223,445.37796948,0.00025,60]
[338368433,1726567307391,7472.58,0.00025,60]
[338368436,1726567307632,7472.58,0.00025,60]
[338368437,1726567307875,7472.58,0.00025,60]
[338368438,1726567307939,1043.19,0.00025,60]
[338368439,1726567307989,7472.58,0.00025,60]
[338368440,1726567308043,500.0,0.00025,60]
[338368441,1726567308093,1043.19,0.00025,60]
[338368442,1726567308143,7472.58,0.00025,60]
[338368443,1726567308196,500.0,0.00025,60]
[338368444,1726567308355,7472.58,0.00025,60]
[338368445,1726567308440,1043.19,0.00025,60]
[338368447,1726567308576,500.0,0.00025,60]
[338368448,1726567308659,7472.58,0.00025,60]
[338368449,1726567308810,1043.19,0.00025,60]
[338368450,1726567308861,500.0,0.00025,60]
[338368452,1726567309017,7472.58,0.00025,60]
[338368453,1726567309071,1043.19,0.00025,60]
[338368454,1726567309123,500.0,0.00025,60]
[338368455,1726567309229,7472.58,0.00025,60]
[338368456,1726567309286,1043.19,0.00025,60]
[338368457,1726567309337,500.0,0.00025,60]
[338368458,1726567309389,7472.58,0.00025,60]
[338368459,1726567309449,500.0,0.00025,60]
[338368460,1726567309502,1043.19,0.00025,60]
[338368461,1726567309553,611.43,0.00025,60]
[338368462,1726567309605,7472.58,0.00025,60]
[338368463,1726567309656,500.0,0.00025,60]
[338368464,1726567309720,1043.19,0.00025,60]
[338368465,1726567310320,611.43,0.00025,60]
[338368467,1726567310376,7472.58,0.00025,60]
[338368471,1726567310833,500.0,0.00025,60]
[338368472,1726567310907,611.43,0.00025,60]
[338368473,1726567311050,1043.19,0.00025,60]
[338368475,1726567311098,7472.73535391,0.00025,60]
[338368477,1726567311178,611.43,0.00025,60]
[338368478,1726567311247,500.0,0.00025,60]
[338368479,1726567311359,1043.19,0.00025,60]
[338368480,1726567311505,611.43,0.00025,60]
[338368481,1726567311558,1043.19,0.00025,60]
[338368482,1726567311617,783.5,0.00025,60]
[338368483,1726567311667,611.43,0.00025,60]
[338368484,1726567311719,1043.19,0.00025,60]
[338368488,1726567312121,1043.19,0.00025,60]
[338368489,1726567312280,783.5,0.00025,60]
[338368490,1726567312331,783.5,0.00025,60]
[338368491,1726567312383,933.85,0.00025,60]
[338368492,1726567312429,611.43,0.00025,60]
[338368493,1726567312478,783.5,0.00025,60]
[338368494,1726567312526,1043.19,0.00025,60]
[338368495,1726567312573,933.85,0.00025,60]
[338368496,1726567312623,611.43,0.00025,60]
[338368497,1726567312696,783.5,0.00025,60]
[338368498,1726567312751,1043.19,0.00025,60]
[338368499,1726567312815,933.85,0.00025,60]
[338368501,1726567313042,783.5,0.00025,60]
[338368502,1726567313156,933.85,0.00025,60]
[338368503,1726567313266,1043.19,0.00025,60]
[338368504,1726567313352,611.43,0.00025,60]
[338368505,1726567313420,783.5,0.00025,60]
[338368506,1726567313506,1043.19,0.00025,60]
[338368507,1726567313553,500.0,0.00025,60]
[338368508,1726567313602,611.43,0.00025,60]
[338368509,1726567313649,933.85,0.00025,60]
[338368510,1726567313707,783.5,0.00025,60]
[338368511,1726567313790,1043.19,0.00025,60]
[338368513,1726567313947,933.85,0.00025,60]
[338368514,1726567314027,500.0,0.00025,60]
[338368515,1726567314130,783.5,0.00025,60]
[338368516,1726567314176,611.43,0.00025,60]
[338368518,1726567314279,1043.19,0.00025,60]
[338368519,1726567314373,933.85,0.00025,60]
[338368520,1726567314425,500.0,0.00025,60]
[338368521,1726567314485,783.5,0.00025,60]
[338368522,1726567314636,611.43,0.00025,60]
[338368523,1726567314681,1043.19,0.00025,60]
[338368524,1726567314731,933.85,0.00025,60]
[338368525,1726567314777,500.0,0.00025,60]
[338368526,1726567314824,1921.63,0.00025,60]
[338368527,1726567314874,611.43,0.00025,60]
[338368528,1726567314945,783.5,0.00025,60]
[338368529,1726567315415,1043.19,0.00025,60]
[338368530,1726567315464,933.85,0.00025,60]
[338368531,1726567315510,500.0,0.00025,60]
[338368532,1726567315556,1921.63,0.00025,60]
[338368533,1726567315602,611.43,0.00025,60]
[338368534,1726567315747,1043.19,0.00025,60]
[338368535,1726567315794,500.0,0.00025,60]
[338368536,1726567315841,933.85,0.00025,60]
[338368537,1726567315889,783.5,0.00025,60]
[338368538,1726567315935,1921.63,0.00025,60]
[338368539,1726567315981,611.43,0.00025,60]
[338368540,1726567316026,1043.19,0.00025,60]
[338368541,1726567316071,500.0,0.00025,60]
[338368542,1726567316118,933.85,0.00025,60]
[338368543,1726567316163,783.5,0.00025,60]
[338368544,1726567316214,1921.63,0.00025,60]
[338368546,1726567316260,611.43,0.00025,60]
[338368547,1726567316348,1043.34606087,0.00025,60]
[338368548,1726567316421,933.85,0.00025,60]
[338368549,1726567316502,783.5,0.00025,60]
[338368550,1726567316558,500.0,0.00025,60]
[338368551,1726567316604,1921.63,0.00025,60]
[338368552,1726567316657,611.43,0.00025,60]
[338368553,1726567316725,3728.11,0.00025,60]
[338368554,1726567316774,933.85,0.00025,60]
[338368555,1726567316822,783.5,0.00025,60]
[338368556,1726567316974,500.0,0.00025,60]
[338368557,1726567317204,611.43,0.00025,60]
[338368558,1726567317250,3728.11,0.00025,60]
[338368559,1726567317300,1921.63,0.00025,60]
[338368560,1726567317347,933.85,0.00025,60]
[338368561,1726567317392,500.0,0.00025,60]
[338368562,1726567317446,611.43,0.00025,60]
[338368563,1726567317504,3728.11,0.00025,60]
[338368564,1726567317550,1921.63,0.00025,60]
[338368566,1726567317595,933.85,0.00025,60]
[338368567,1726567317640,500.0,0.00025,60]
[338368568,1726567317686,611.43,0.00025,60]
[338368569,1726567317734,3728.11,0.00025,60]
[338368570,1726567317781,1921.63,0.00025,60]
[338368571,1726567317831,933.85,0.00025,60]
[338368572,1726567317877,500.0,0.00025,60]
[338368573,1726567318040,611.43,0.00025,60]
[338368575,1726567318090,3728.11,0.00025,60]
[338368576,1726567318138,1921.63,0.00025,60]
[338368577,1726567318186,933.85,0.00025,60]
[338368578,1726567318235,627.79836228,0.00025,60]
[338368579,1726567318303,3728.11,0.00025,60]
[338368580,1726567318447,1921.63,0.00025,60]
[338368581,1726567318493,611.43,0.00025,60]
[338368582,1726567318541,933.85,0.00025,60]
[338368583,1726567318595,3728.11,0.00025,60]
[338368584,1726567318652,1921.63,0.00025,60]
[338368585,1726567318699,611.43,0.00025,60]
[338368586,1726567318747,933.85,0.00025,60]
[338368587,1726567318798,3728.11,0.00025,60]
[338368589,1726567318990,611.60253508,0.00025,60]
[338368590,1726567319107,933.85,0.00025,60]
[338368591,1726567319156,1812.62,0.00025,60]
[338368592,1726567319210,1921.63,0.00025,60]
[338368593,1726567319258,3728.11,0.00025,60]
[338368594,1726567319309,1812.62,0.00025,60]
[338368595,1726567319358,1921.63,0.00025,60]
[338368596,1726567319405,1812.62,0.00025,60]
[338368597,1726567319452,500.0,0.00025,60]
[338368598,1726567319499,1921.63,0.00025,60]
[338368599,1726567319547,3728.11,0.00025,60]
[338368600,1726567319594,500.0,0.00025,60]
[338368602,1726567319877,933.85,0.00025,60]
[338368604,1726567320037,1812.62,0.00025,60]
[338368605,1726567320116,500.0,0.00025,60]
[338368606,1726567320167,3728.11,0.00025,60]
[338368607,1726567320219,1812.62,0.00025,60]
[338368608,1726567320275,500.0,0.00025,60]
[338368609,1726567320848,500.0,0.00025,60]
[338368610,1726567320899,3728.11,0.00025,60]
[338368611,1726567320946,1812.62,0.00025,60]
[338368612,1726567320994,500.0,0.00025,60]
[338368613,1726567321043,500.0,0.00025,60]
[338368614,1726567321094,933.85,0.00025,60]
[338368615,1726567321141,1812.62,0.00025,60]
[338368616,1726567321191,3728.11,0.00025,60]
[338368617,1726567321240,500.0,0.00025,60]
[338368618,1726567321288,500.0,0.00025,60]
[338368619,1726567321446,933.85,0.00025,60]
[338368621,1726567321495,3728.11,0.00025,60]
[338368622,1726567321543,1812.62,0.00025,60]
[338368624,1726567321592,500.0,0.00025,60]
[338368625,1726567321640,500.0,0.00025,60]
[338368626,1726567321717,934.04,0.00025,60]
[338368627,1726567321765,2751.43,0.00025,60]
[338368628,1726567321815,1812.62,0.00025,60]
[338368629,1726567321863,3728.11,0.00025,60]
[338368630,1726567321910,500.0,0.00025,60]
[338368631,1726567321978,2751.43,0.00025,60]
[338368632,1726567322027,1812.62,0.00025,60]
[338368633,1726567322076,3728.11,0.00025,60]
[338368634,1726567322125,500.0,0.00025,60]
[338368635,1726567322174,500.0,0.00025,60]
[338368636,1726567322267,2751.43,0.00025,60]
[338368637,1726567322315,1812.62,0.00025,60]
[338368639,1726567322366,318.03790381,0.00025,60]
[338368640,1726567322414,3728.11,0.00025,60]
[338368641,1726567322536,500.0,0.00025,60]
[338368642,1726567322588,1812.62,0.00025,60]
[338368643,1726567322638,2751.43,0.00025,60]
[338368645,1726567322685,3728.11,0.00025,60]
[338368646,1726567322744,500.0,0.00025,60]
[338368648,1726567322908,1812.62,0.00025,60]
[338368649,1726567322963,2751.43,0.00025,60]
[338368650,1726567323013,3728.11,0.00025,60]
[338368651,1726567323065,1217.98,0.00025,60]
[338368652,1726567323129,500.0,0.00025,60]
[338368653,1726567323188,2751.43,0.00025,60]
[338368654,1726567323314,3728.11,0.00025,60]
[338368656,1726567323385,1812.62,0.00025,60]
[338368657,1726567323732,1217.98,0.00025,60]
[338368658,1726567323832,500.0,0.00025,60]
[338368659,1726567323961,2751.43,0.00025,60]
[338368660,1726567324016,1812.62,0.00025,60]
[338368661,1726567324066,1228.64155928,0.00025,60]
[338368685,1726567336747,164.33,0.00012353,2]
[338368700,1726567347075,34410.8659671,6.781e-05,7]
[338368708,1726567352570,2519.15,0.00012299,2]
[338368722,1726567360854,180.32667681,0.00012598,2]
[338368737,1726567371209,1000.0,0.00012323,2]
[338368746,1726567375893,257.37,0.00012421,2]
[338368747,1726567376442,1500.0,0.00012323,2]
[338368824,1726567432291,777.44,0.00012323,2]
[338368927,1726567521028,2000.0,0.0001255,2]
[338368940,1726567529575,250.0,0.0001261,2]
[338368947,1726567532717,826.07999926,6.781e-05,7]
[338368973,1726567554769,201.27,0.00012573,2]
[338369005,1726567577976,250.0,0.00012574,2]
[338369121,1726567660164,458.25,0.00010179,2]
[338369122,1726567660394,458.25,0.00012443,2]
[338369123,1726567661962,44262.72174871,6.781e-05,7]
[338369124,1726567661986,24612.8692,6.781e-05,7]
[338369125,1726567662011,208519.80947229,6.781e-05,7]
[338369153,1726567688114,6018.79,0.00012056,2]
[338369187,1726567710219,-786.8,0.00012638,2]
[338369188,1726567710249,-494.15499627,0.00012676,2]
[338369189,1726567710278,-1.00586743,0.00012676,2]
[338369213,1726567726123,23900.0,0.00012136,2]
[338369256,1726567758907,1075.38606272,6.781e-05,7]
[338369258,1726567760008,-427.32413257,0.00012676,2]
[338369259,1726567760039,-200.0,0.000127,4]
[338369260,1726567760068,-150.0,0.00012703,2]
[338369293,1726567790945,250.0,0.00012264,2]
[338369301,1726567797150,397.29,0.00012264,2]
[338369306,1726567802243,1952.95,0.00012309,2]
[338369341,1726567831577,-251.39949522,0.00012649,2]
[338369342,1726567831588,-150.0,0.00012756,2]
[338369343,1726567831597,-150.0,0.00012778,2]
[338369344,1726567831606,-500.0,0.000128,4]
[338369346,1726567831616,-440.05,0.000128,2]
[338369348,1726567831626,-3549.31577912,0.000128,2]
[338369349,1726567831638,-6960.74467116,0.000128,2]
[338369350,1726567831649,-3828.51859484,0.000128,2]
[338369351,1726567831660,-2328.56812638,0.000128,2]
[338369352,1726567831671,-6178.9825058,0.000128,2]
[338369353,1726567831682,-8606.23695535,0.000128,2]
[338369354,1726567831697,-298.62086198,0.000128,2]
[338369355,1726567831717,-5409.42459508,0.000128,2]
[338369356,1726567831728,-358.03106852,0.000128,2]
[338369357,1726567831739,-552.46305185,0.000128,2]
[338369358,1726567831750,-6225.7093259,0.000128,2]
[338369359,1726567831761,-2673.51751421,0.000128,2]
[338369360,1726567831772,-328.01300429,0.000128,2]
[338369361,1726567831793,-849.97896667,0.000128,2]
[338369362,1726567831804,-1851.87497885,0.000128,2]
[338369363,1726567831814,-462.56332545,0.00012808,2]
[338369364,1726567831834,-37.43667455,0.00012808,2]
[338369365,1726567831843,-312.56332545,0.00012808,2]
[338369367,1726567831871,-386.89889753,0.00012808,2]
[338369368,1726567831907,-1792.25777702,0.00012808,2]
[338369369,1726567831917,-150.0,0.0001283,2]
[338369370,1726567831926,-1936.54303228,0.0001287,2]
[338369371,1726567831935,-499.99,0.0001287,2]
[338369372,1726567831945,-150.99,0.00012899,2]
[338369373,1726567831954,-999.99,0.00012899,2]
[338369374,1726567831963,-847.08,0.00012899,2]
[338369375,1726567831973,-365.21,0.00012899,2]
[338369376,1726567831983,-1166.91,0.00012899,2]
[338369377,1726567831992,-771.91247904,0.00012899,2]
[338369378,1726567832004,-328.4348001,0.00012899,2]
[338369379,1726567832015,-400.21272086,0.00012899,2]
[338369380,1726567832024,-742.78727914,0.00012899,2]
[338369381,1726567832035,-178.85272086,0.00012899,2]
[338369382,1726567832044,-150.0,0.00012899,2]
[338369383,1726567832054,-166.15781358,0.000129,2]
[338369385,1726567832064,-195.19191956,0.000129,2]
[338369387,1726567832073,-180.87793963,0.000129,2]
[338369389,1726567832083,-150.0,0.000129,2]
[338369390,1726567832092,-800.0,0.000129,4]
[338369391,1726567832102,-319.2109995,0.000129,2]
[338369392,1726567832112,-150.0,0.00012925,2]
[338369393,1726567832122,-150.0,0.00012946,2]
[338369394,1726567832131,-150.0,0.00012962,2]
[338369395,1726567832141,-150.0,0.00012969,2]
[338369396,1726567832150,-500.0,0.00012973,2]
[338369397,1726567832160,-500.0,0.00012973,2]
[338369398,1726567832169,-500.0,0.00012973,2]
[338369399,1726567832179,-216.748727,0.0001299,2]
[338369400,1726567832188,-152.33,0.0001299,2]
[338369401,1726567832197,-61.21128354,0.0001299,2]
[338369402,1726567833041,-91.11871646,0.0001299,2]
[338369403,1726567833051,-152.33,0.0001299,2]
[338369404,1726567833062,-152.33,0.0001299,2]
[338369405,1726567833071,-152.33,0.0001299,2]
[338369406,1726567833081,-152.33,0.0001299,2]
[338369407,1726567833092,-152.33,0.0001299,2]
[338369408,1726567833102,-332.02068214,0.00012999,2]
[338369409,1726567833111,-500.0,0.00012999,2]
[338369410,1726567833121,-500.0,0.00012999,2]
[338369411,1726567833130,-500.0,0.00012999,2]
[338369412,1726567833140,-500.0,0.00012999,2]
[338369413,1726567833149,-500.0,0.00012999,2]
[338369414,1726567833159,-404.12927158,0.00012999,2]
[338369415,1726567833168,-549.00607851,0.00012999,2]
[338369416,1726567833177,-500.0,0.00012999,2]
[338369417,1726567833187,-500.0,0.00012999,2]
[338369418,1726567833197,-509.57360251,0.00012999,2]
[338369419,1726567833206,-260.27881804,0.00012999,2]
[338369420,1726567833216,-500.0,0.00012999,2]
[338369421,1726567833225,-500.0,0.00012999,2]
[338369422,1726567833235,-500.0,0.00012999,2]
[338369423,1726567833244,-500.0,0.00012999,2]
[338369424,1726567833254,-219.76902392,0.00012999,2]
[338369425,1726567833264,-235.65727592,0.00012999,2]
[338369426,1726567833273,-500.0,0.00012999,2]
[338369427,1726567833283,-500.0,0.00012999,2]
[338369428,1726567833292,-500.0,0.00012999,2]
[338369429,1726567833302,-304.441,0.00012999,2]
[338369430,1726567833311,-225.425,0.00012999,2]
[338369431,1726567833321,-193680.51778325,0.00013,2]
[338369432,1726567833332,-279.69657276,0.00013,2]
[338369433,1726567833344,-1075.43,0.00013,2]
[338369434,1726567833355,-360.246502,0.00013,2]
[338369435,1726567833366,-42152.76357282,0.00013,2]
[338369436,1726567833381,-741.4673214,0.00013,2]
[338369437,1726567833392,-166296.09923904,0.00013,2]
[338369442,1726567837606,-2973.57485311,0.00013,2]
[338369443,1726567837617,-290.08119832,0.00013,2]
[338369444,1726567837633,-858.216,0.00013,2]
[338369445,1726567837644,-372.94911677,0.00013,2]
[338369446,1726567837655,-3704.1009641,0.00013,2]
[338369447,1726567837754,-20865.28672046,0.00013,2]
[338369448,1726567837763,-2846.64183638,0.00013,2]
[338369449,1726567837772,-283607.98112062,0.00013,2]
[338369450,1726567837784,-1083727.18748342,0.00013,2]
[338369451,1726567837793,-201.04768892,0.00013,2]
[338369452,1726567837803,-5233.30657493,0.00013,2]
[338369453,1726567837813,-180.87793962,0.00013111,2]
[338369454,1726567837822,-179.36,0.00013125,2]
[338369455,1726567837831,-314.08,0.0001327,2]
[338369456,1726567837842,-180.87793962,0.00013322,2]
[338369457,1726567837851,-500.0,0.00013335,2]
[338369458,1726567837861,-180.87793962,0.00013533,2]
[338369459,1726567837870,-416.61,0.00013699,2]
[338369460,1726567837879,-200.0,0.00013699,2]
[338369461,1726567837889,-2751.0,0.00013699,2]
[338369462,1726567837904,-447.24,0.00013699,2]
[338369463,1726567837914,-1882.2,0.00013699,2]
[338369464,1726567837923,-1384.3,0.000137,2]
[338369465,1726567837933,-1384.3,0.000137,2]
[338369466,1726567837942,-1384.3,0.000137,2]
[338369467,1726567837951,-1384.3,0.000137,2]
[338369468,1726567837960,-1384.3,0.000137,2]
[338369470,1726567837970,-180.87793962,0.00013744,2]
[338369471,1726567837980,-250.0,0.000138,2]
[338369472,1726567837989,-250.0,0.000138,2]
[338369473,1726567837998,-250.0,0.000138,2]
[338369474,1726567838007,-250.0,0.000138,2]
[338369475,1726567838016,-250.0,0.000138,2]
[338369477,1726567838026,-250.0,0.000138,2]
[338369478,1726567838035,-250.0,0.000138,2]
[338369480,1726567838044,-250.0,0.000138,2]
[338369482,1726567838054,-250.0,0.000138,2]
[338369484,1726567838063,-250.0,0.000138,2]
[338369486,1726567838072,-250.0,0.000138,2]
[338369488,1726567838082,-250.0,0.000138,2]
[338369490,1726567838092,-250.0,0.000138,2]
[338369492,1726567838101,-250.0,0.000138,2]
[338369494,1726567838111,-250.0,0.000138,2]
[338369496,1726567838120,-250.0,0.000138,2]
[338369498,1726567838129,-250.0,0.000138,2]
[338369500,1726567838138,-250.0,0.000138,2]
[338369502,1726567838147,-250.0,0.000138,2]
[338369530,1726567838407,-250.0,0.000138,2]
[338369531,1726567838416,-250.0,0.000138,2]
[338369533,1726567838426,-250.0,0.000138,2]
[338369535,1726567838435,-250.0,0.000138,2]
[338369537,1726567838444,-250.0,0.000138,2]
[338369539,1726567838453,-250.0,0.000138,2]
[338369541,1726567838462,-250.0,0.000138,2]
[338369543,1726567838471,-250.0,0.000138,2]
[338369545,1726567838480,-250.0,0.000138,2]
[338369546,1726567838489,-250.0,0.000138,2]
[338369548,1726567838499,-250.0,0.000138,2]
[338369550,1726567838508,-250.0,0.000138,2]
[338369552,1726567838517,-250.0,0.000138,2]
[338369554,1726567838526,-250.0,0.000138,2]
[338369556,1726567838535,-250.0,0.000138,2]
[338369558,1726567838545,-250.0,0.000138,2]
[338369559,1726567838554,-250.0,0.000138,2]
[338369561,1726567838563,-250.0,0.000138,2]
[338369563,1726567838573,-250.0,0.000138,2]
[338369565,1726567838582,-250.0,0.000138,2]
[338369567,1726567838593,-251.3,0.000138,2]
[338369569,1726567838603,-1000.0,0.00013863,2]
[338369571,1726567838612,-1000.0,0.000139,2]
[338369573,1726567838621,-1100.0,0.000139,5]
[338369575,1726567838631,-500.0,0.00013904,2]
[338369577,1726567838640,-269.48,0.00013948,2]
[338369579,1726567838650,-180.87793962,0.00013956,2]
[338369581,1726567838660,-442.258,0.00014,2]
[338369583,1726567838669,-150.0,0.00014008,2]
[338369585,1726567838679,-202.53168431,0.00014067,2]
[338369587,1726567838688,-152.33,0.0001409,2]
[338369589,1726567838698,-152.33,0.0001409,2]
[338369591,1726567838707,-152.33,0.0001409,2]
[338369593,1726567838716,-250050.65341429,0.000141,2]
[338369595,1726567838725,-94664.91183736,0.000141,2]
[338369597,1726567838738,-5974.7917284,0.000141,2]
[338369599,1726567838750,-20302.02648502,0.000141,2]
[338369602,1726567838762,-1152.06794487,0.000141,2]
[338369604,1726567838775,-705.09885338,0.000141,2]
[338369606,1726567838787,-3353.94450525,0.000141,2]
[338369608,1726567838799,-667.24633407,0.000141,2]
[338369611,1726567838811,-5146.02669942,0.000141,2]
[338369614,1726567838835,-2146.17360397,0.000141,2]
[338369616,1726567838847,-1355.02815999,0.000141,2]
[338369619,1726567838859,-8076.7199976,0.000141,2]
[338369621,1726567838870,-533.37440549,0.000141,2]
[338369623,1726567838881,-5231.0,0.000141,2]
[338369625,1726567838893,-504.3514221,0.000141,2]
[338369627,1726567838907,-5878.35106938,0.000141,2]
[338369629,1726567838918,-19099.21,0.000141,2]